[Event "44th Chess Olympiad Open 2022"]
[Site "Chennai"]
[Date "2022.08.05"]
[Round "7.46"]
[White "Thing, Bibek"]
[Black "Kojima, Shinya"]
[Result "1-0"]
[ECO "C54"]
[WhiteElo "2260"]
[BlackElo "2346"]
[Annotator "TA"]
[PlyCount "137"]
[EventDate "2022.07.29"]
[EventType "team-tourn"]
[EventCountry "IND"]
[SourceTitle "playchess.com"]
[Source "ChessBase"]
[SourceQuality "1"]
[WhiteTeam "Nepal"]
[BlackTeam "Japan"]
[WhiteTeamCountry "NEP"]
[BlackTeamCountry "JPN"]
[TimeControl "40/5400+30:1800+30"]

{[%evp 9,137,25,22,12,12,15,12,7,10,2,10,13,13,0,0,0,0,0,8,0,-13,-25,-14,-7,0,0,183,193,232,0,0,0,0,0,0,-16,0,0,0,-12,0,0,0,0,0,0,0,0,0,-16,0,0,0,-5,0,-4,0,-33,-29,-33,-27,-60,-58,-72,-70,-70,-6,-6,-6,-10,0,0,0,0,0,-12,-12,-12,-12,-81,-86,-64,0,0,0,0,0,0,0,0,0,0,0,0,0,0,0,-5,-7,-7,-7,-12,0,-12,-12,-19,-19,-19,12844,12844,12845,12845,12845,12846,12846,12847,12847,12846,12846,12843,12850,12849,12850,12850,27999,27999,27999,27999,27999,27999]} 1. e4 {[%emt 0:00:24]} e5 {[%emt 0:00:06]} 2. Nf3 {[%emt 0:00:14]} Nc6 {[%emt 0:00:06]} 3. Bc4 {[%emt 0:03:32]} Nf6 {[%emt 0:00:08]} 4. d3 {[%emt 0:00:04]} Bc5 {[%emt 0:00:11]} 5. c3 {[%emt 0:00:13]} d6 {[%emt 0:00:07]} 6. a4 {[%emt 0:00:07] And now b4 would win. C54: Giuoco Piano: 4 c3 Nf6, main lines with 5 d4 and 5 d3.} a5 {[%emt 0:00:22] Prevents b4.} 7. O-O {[%emt 0:00:47]} h6 {[%emt 0:00:29]} 8. Nbd2 {[%emt 0:00:09][%cal Bb1d2,Bd2f1,Bf1g3][%mdl 32] The position is equal.} O-O {[%emt 0:00:09]} 9. h3 {[%emt 0:00:28]} Ba7 {[%emt 0:02:29]} 10. Re1 {[%emt 0:00:30]} Be6 {[%emt 0:02:40]} (10... Nh5 {is interesting.} 11. Nf1 Be6 12. b3 Qf6) 11. Bb3 {[%emt 0:02:13]} Re8 {[%emt 0:10:28]} 12. Bc2 {[%emt 0:08:04]} Qd7 {[%emt 0:05:09]} 13. Nf1 {[%emt 0:01:36]} Rad8 {[%emt 0:09:49]} 14. Ng3 {[%emt 0:05:04]} d5 {[%emt 0:12:04]} 15. Qe2 {[%emt 0:00:36] [#]} (15. exd5 {is more complex.} Bxd5 16. Nh4 Bc5 17. Nhf5) 15... Bc5 $146 {[%emt 0:09:20]} ({Predecessor:} 15... dxe4 16. dxe4 Kh7 17. Kh2 Qe7 18. Kg1 Nd7 19. Be3 Bxe3 20. Qxe3 Qc5 21. Rab1 Qxe3 22. Rxe3 {½-½ (77) Harshal,S (2139)-Karthik,V (2366) New Delhi 2016}) 16. Nh4 {[%emt 0:06:56]} Bxh3 {[%emt 0:08:57]} 17. exd5 {[%emt 0:07:10]} Nxd5 {[%emt 0:12:16]} 18. gxh3 $18 {[%emt 0:03:27]} Nf4 {[%emt 0:06:34]} 19. Bxf4 {[%emt 0:24:26]} (19. Qf3 $1 $18) 19... exf4 $11 {[%emt 0:00:10]} 20. Qf3 {[%emt 0:02:18]} ({But not} 20. Ne4 Qxh3 21. Nf3 Re5 $1 $17) 20... fxg3 {[%emt 0:04:03]} 21. Qxg3 {[%emt 0:00:20]} Bd6 {[%emt 0:03:19]} 22. Qg4 {[%emt 0:04:32]} Ne5 {[%emt 0:02:02]} 23. Qxd7 {[%emt 0:03:07]} Nxd7 {[%emt 0:00:04]} 24. d4 {[%emt 0:00:28]} Nf6 {[%emt 0:03:36]} 25. Nf5 {[%emt 0:02:02]} Bf8 {[%emt 0:00:00]} 26. Ne3 {[%emt 0:05:30]} c5 {[%emt 0:00:00]} 27. dxc5 {[%emt 0:11:42]} Bxc5 {[%emt 0:00:00]} 28. Nc4 {[%emt 0:00:06] Against Rd2} b6 {[%emt 0:00:35]} 29. Kf1 {[%emt 0:01:38]} g6 {[%emt 0:03:04]} 30. Rxe8+ {[%emt 0:02:41]} Rxe8 {[%emt 0:00:06]} 31. Re1 {[%emt 0:00:14]} Rxe1+ {[%emt 0:01:00]} 32. Kxe1 {[%emt 0:00:03][%mdl 4096] Endgame KBN-KBN} Nd5 {[%emt 0:00:12]} 33. Bd3 {[%emt 0:02:08]} Nf4 {[%emt 0:00:38][%csl LRd3,LRh3]} 34. Bf1 {[%emt 0:00:02]} f6 {[%emt 0:01:44]} 35. f3 {[%emt 0:01:13]} Kf7 {[%emt 0:01:34]} 36. Kd1 {[%emt 0:00:19][%cal Ob2b4]} Nd5 {[%emt 0:00:49] Prevents b4.} 37. Nd2 {[%emt 0:02:39]} f5 {[%emt 0:02:58]} (37... Ke7 $15) 38. Bc4 {[%emt 0:00:29]} Ke6 {[%emt 0:00:08]} 39. Ke2 {[%emt 0:01:06]} Ke5 {[%emt 0:00:40]} 40. Bxd5 {[%emt 0:01:05]} Kxd5 {[%emt 0:00:07] KB-KN} 41. f4 $1 {[%emt 0:10:03]} Bd6 {[%emt 0:06:44]} 42. Kf3 {[%emt 0:00:38]} g5 {[%emt 0:00:59]} 43. fxg5 {[%emt 0:00:53]} hxg5 {[%emt 0:00:07]} 44. b3 {[%emt 0:05:44]} (44. Ke3 $11 {keeps the balance.}) 44... Be5 $17 {[%emt 0:03:12]} 45. Nb1 {[%emt 0:01:11]} Kc5 {[%emt 0:02:39]} ({Black should try} 45... Bg7 $15) 46. Ke3 $11 {[%emt 0:00:56]} Bf4+ {[%emt 0:01:12]} 47. Kd3 {[%emt 0:01:34]} Bc1 {[%emt 0:04:25] Threatens to win with ...Kd5.} 48. Kc2 {[%emt 0:01:04]} Be3 {[%emt 0:00:51] aiming for ...Kd5.} 49. Kd3 {[%emt 0:00:07]} Bf4 {[%emt 0:00:18]} 50. Na3 {[%emt 0:02:11]} g4 {[%emt 0:09:55]} 51. hxg4 {[%emt 0:00:03]} fxg4 {[%emt 0:00:05]} 52. Nc2 {[%emt 0:06:02]} g3 {[%emt 0:02:40] ...g2 is the strong threat.} 53. Ne1 {[%emt 0:00:29]} Kd5 {[%emt 0:02:56]} 54. Ng2 $1 {[%emt 0:00:53]} Bg5 {[%emt 0:00:32]} 55. Ne1 {[%emt 0:01:28]} Ke5 {[%emt 0:01:11]} 56. Ng2 {[%emt 0:01:36]} Kf5 {[%emt 0:00:15] Hoping for ...Kg4.} 57. b4 $1 {[%emt 0:00:51]} Kg4 {[%emt 0:00:50] White must now prevent ...Kf3.} 58. bxa5 {[%emt 0:01:21]} Kf3 $2 {[%emt 0:01:40][%mdl 8192] [#] This move loses the game for Black.} (58... bxa5 $11 59. Ke4 Bf6) 59. a6 $1 $18 {[%emt 0:01:20]} Kxg2 {[%emt 0:00:35] KB-K3P} 60. a7 {[%emt 0:00:02]} Kf2 {[%emt 0:00:39]} 61. a8=Q {[%emt 0:00:19]} g2 {[%emt 0:00:30]} 62. Qb8 {[%emt 0:01:47]} Be3 {[%emt 0:00:31]} 63. Qh2 {[%emt 0:00:43]} Bc5 {[%emt 0:00:28]} 64. Kc4 {[%emt 0:00:31]} Kf1 {[%emt 0:00:27]} 65. a5 {[%emt 0:00:47][%cal Ba4a5,Ba5a6][%mdl 32]} ({Inferior is} 65. Qf4+ Bf2 $11) 65... g1=Q {[%emt 0:00:35]} 66. Qxg1+ {[%emt 0:00:02]} Bxg1 {[%emt 0:00:10]} 67. a6 {[%emt 0:00:19] White mates.} b5+ {[%emt 0:00:50]} 68. Kxb5 {[%emt 0:00:04]} Ke2 {[%emt 0:00:21] [#]} 69. c4 $1 {[%emt 0:00:11] Weighted Error Value: White=0.11 (very precise) /Black=0.11 (very precise)} 1-0

[Event "44th Chess Olympiad Open 2022"]
[Site "Chennai"]
[Date "2022.08.05"]
[Round "7.46"]
[White "Averbukh, Alex"]
[Black "Bhandari, Kshitiz"]
[Result "1-0"]
[ECO "C45"]
[WhiteElo "2155"]
[BlackElo "2071"]
[Annotator "TA"]
[PlyCount "107"]
[EventDate "2022.07.29"]
[EventType "team-tourn"]
[EventCountry "IND"]
[SourceTitle "playchess.com"]
[Source "ChessBase"]
[SourceQuality "1"]
[WhiteTeam "Japan"]
[BlackTeam "Nepal"]
[WhiteTeamCountry "JPN"]
[BlackTeamCountry "NEP"]
[TimeControl "40/5400+30:1800+30"]

{[%evp 14,107,0,-11,8,0,10,-41,33,29,20,8,44,37,30,47,39,42,48,-14,46,55,60,45,34,46,39,39,53,56,84,59,85,63,93,92,89,83,79,75,160,40,45,48,96,91,93,93,110,104,133,111,141,111,112,93,98,93,106,102,172,172,172,172,216,147,155,0,354,368,327,306,283,274,256,239,475,454,360,340,806,718,849,697,6103,2352,2154,1788,29982,29983,29982,29983,29983,29983,29982,29982]} 1. e4 {[%emt 0:00:04]} e5 {[%emt 0:00:12]} 2. Nf3 {[%emt 0:00:06]} Nc6 {[%emt 0:00:05]} 3. d4 {[%emt 0:00:05]} exd4 {[%emt 0:00:04]} 4. Nxd4 {[%emt 0:00:04]} Nf6 {[%emt 0:00:53]} 5. Nxc6 {[%emt 0:00:12]} bxc6 {[%emt 0:00:04]} 6. e5 {[%emt 0:00:04]} Qe7 {[%emt 0:00:03]} 7. Qe2 {[%emt 0:00:06]} Nd5 {[%emt 0:00:04]} 8. h4 {[%emt 0:00:13]} d6 {[%emt 0:05:10] C45: Scotch Game.} 9. c4 {[%emt 0:04:49]} Nb6 {[%emt 0:13:20]} 10. Bf4 {[%emt 0:07:39]} ({White should try} 10. exd6 $11 Qxe2+ 11. Bxe2) 10... Ba6 {[%emt 0:04:18]} (10... d5 $15) 11. Nd2 $14 {[%emt 0:07:14]} O-O-O {[%emt 0:14:03] [#]} 12. O-O-O $146 {[%emt 0:18:56]} (12. exd6 {is more complex.} cxd6 13. Bg5 f6 14. Be3) ({Predecessor:} 12. Rh3 dxe5 13. Bg5 f6 14. Ra3 Bb7 15. Be3 c5 16. Rxa7 Qe6 17. O-O-O Be7 18. g3 {1-0 (44) Janaszak,D (2333)-Von Buelow,G (2361) Chess.com INT 2022}) 12... dxe5 {[%emt 0:22:53]} 13. Qxe5 {[%emt 0:00:51]} (13. Bxe5 {keeps more tension.} f6 14. Bf4 Qf7 15. Qf3) 13... Qxe5 {[%emt 0:00:35]} 14. Bxe5 {[%emt 0:00:10]} f6 {[%emt 0:00:03]} 15. Bf4 {[%emt 0:04:23]} Bc5 {[%emt 0:14:29]} 16. b3 {[%emt 0:19:26]} (16. f3 $14) 16... Rhe8 {[%emt 0:01:59]} (16... Bxf2 $11 17. Nf3 Kb8) 17. f3 {[%emt 0:10:02]} Kb8 {[%emt 0:04:35]} 18. Ne4 {[%emt 0:07:39] Prevents Bd6.} Ba3+ {[%emt 0:00:40]} 19. Kc2 {[%emt 0:00:07]} Rxd1 {[%emt 0:00:07]} 20. Kxd1 {[%emt 0:00:06]} Bc8 {[%emt 0:04:49]} 21. Bd3 {[%emt 0:00:38]} a5 {[%emt 0:03:15]} 22. h5 {[%emt 0:01:51]} h6 {[%emt 0:03:02]} 23. Re1 {[%emt 0:05:21]} Bb4 {[%emt 0:01:01]} 24. Re2 {[%emt 0:01:18]} Nd7 {[%emt 0:02:12]} 25. Ng3 {[%emt 0:05:11]} Rd8 {[%emt 0:00:25] And now ...Nc5 would win.} 26. Kc2 {[%emt 0:00:39] 0x0.001e3d2b6f5adp-1022s more active pieces.} Nc5 {[%emt 0:00:47]} ({Better is} 26... a4) 27. Bg6 {[%emt 0:01:38]} (27. Bf5 $16) 27... Ne6 {[%emt 0:00:16]} 28. Be3 {[%emt 0:00:26]} Bf8 {[%emt 0:02:41]} (28... Nd4+ $14 29. Bxd4 Rxd4) 29. Rd2 $16 {[%emt 0:00:39]} Rxd2+ {[%emt 0:00:14]} 30. Bxd2 {[%emt 0:00:19]} a4 {[%emt 0:01:19]} 31. bxa4 {[%emt 0:00:53]} Nd4+ {[%emt 0:00:32]} 32. Kd3 {[%emt 0:00:20]} c5 {[%emt 0:00:05]} 33. Bc3 {[%emt 0:01:27]} Ne6 {[%emt 0:00:13]} 34. Ne2 {[%emt 0:00:28] Against Nf4+} Bd7 {[%emt 0:00:29]} 35. a5 {[%emt 0:00:24]} Bd6 {[%emt 0:00:36]} 36. Ke3 {[%emt 0:00:57]} Ka7 {[%emt 0:00:58]} (36... Nd8 $16 {keeps fighting.}) 37. Bf5 $18 {[%emt 0:01:24]} Ka6 {[%emt 0:00:05]} 38. g3 {[%emt 0:00:24]} c6 {[%emt 0:00:33]} 39. Bg4 {[%emt 0:01:17]} Bc7 {[%emt 0:00:35]} 40. Bf5 $2 {[%emt 0:01:00]} (40. Nf4 $16 Bxf4+ 41. gxf4) 40... Bxa5 $2 {[%emt 0:00:19][%mdl 8192]} (40... Bd6 $1 $11 {and Black has nothing to worry.}) 41. Bxa5 {[%emt 0:31:05]} Kxa5 $11 {[%emt 0:30:07][%mdl 4096] Endgame [#] KBN-KBN} 42. Nf4 $1 {[%emt 0:00:15]} Nf8 {[%emt 0:01:29] [#]} (42... Nxf4 $2 43. Bxd7 Nxh5 44. g4 $18) 43. Bxd7 {[%emt 0:00:55]} Nxd7 $18 {[%emt 0:00:00] KN-KN} 44. Ne6 {[%emt 0:00:21]} Kb4 $2 {[%emt 0:00:06]} (44... Ne5 {is a better defense.} 45. Nxc5 (45. Nxg7 Nxc4+ 46. Kd3 Nd6 $16) 45... Kb4) 45. Nxg7 {[%emt 0:00:35] Hoping for Nf5.} Ne5 {[%emt 0:00:36]} 46. Nf5 {[%emt 0:00:28]} Nxc4+ $2 {[%emt 0:00:28]} (46... Nf7 47. Kd3 Ne5+ 48. Ke4 Nf7) 47. Ke2 {[%emt 0:00:34]} Kc3 {[%emt 0:00:17]} 48. Nxh6 {[%emt 0:00:31] Strongly threatening Nf7.} Kb2 {[%emt 0:00:00]} 49. Ng4 {[%emt 0:00:00]} (49. Nf7 $142 Na3 50. h6) 49... Nd6 {[%emt 0:00:00]} 50. h6 {[%emt 0:00:00][%cal Bh5h6,Bh6h7][%mdl 32]} c4 {[%emt 0:00:00]} 51. h7 {[%emt 0:00:00] White mates.} Nf7 {[%emt 0:00:00]} 52. a4 {[%emt 0:00:00]} c3 {[%emt 0:00:00]} 53. Ne3 {[%emt 0:00:00]} c2 {[%emt 0:00:00] [#]} 54. Nxc2 $1 {[%emt 0:00:00][%mdl 512] Weighted Error Value: White=0.18 (very precise) /Black=0.54} 1-0

[Event "44th Chess Olympiad Open 2022"]
[Site "Chennai"]
[Date "2022.08.05"]
[Round "7.46"]
[White "Jaiswal, Rupesh"]
[Black "Kobayashi, Atsuhiko"]
[Result "1/2-1/2"]
[ECO "B06"]
[WhiteElo "2083"]
[BlackElo "2156"]
[Annotator "NA RC"]
[PlyCount "180"]
[EventDate "2022.07.29"]
[EventType "team-tourn"]
[EventCountry "IND"]
[SourceTitle "playchess.com"]
[Source "ChessBase"]
[SourceQuality "1"]
[WhiteTeam "Nepal"]
[BlackTeam "Japan"]
[WhiteTeamCountry "NEP"]
[BlackTeamCountry "JPN"]
[TimeControl "40/5400+30:1800+30"]

1. e4 {[%emt 0:00:36]} g6 {[%emt 0:00:22]} 2. d4 {[%emt 0:01:01]} Bg7 {[%emt 0:00:16]} 3. Nf3 {[%emt 0:00:25]} d6 {[%emt 0:00:07]} 4. Nc3 {[%emt 0:01:42]} a6 {[%emt 0:00:07]} 5. a4 {[%emt 0:00:26]} b6 {[%emt 0:00:18]} 6. Bc4 {[%emt 0:01:03]} e6 {[%emt 0:00:17]} 7. O-O {[%emt 0:02:10]} Ne7 {[%emt 0:00:57]} 8. Bg5 {[%emt 0:02:57]} h6 {[%emt 0:00:37]} 9. Be3 {[%emt 0:00:30]} O-O {[%emt 0:02:55]} 10. Qd2 {[%emt 0:01:54]} Kh7 {[%emt 0:00:06]} 11. Rad1 {[%emt 0:00:09]} Bb7 {[%emt 0:06:52]} 12. Rfe1 {[%emt 0:03:31]} Nd7 {[%emt 0:01:34]} 13. Qe2 {[%emt 0:04:03]} Nf6 {[%emt 0:03:40]} 14. Bc1 {[%emt 0:08:04]} Qb8 {[%emt 0:17:51]} 15. e5 {[%emt 0:07:57]} Nfg8 {[%emt 0:12:15]} 16. d5 {[%emt 0:03:51]} b5 {[%emt 0:07:40]} 17. axb5 {[%emt 0:02:43]} axb5 {[%emt 0:00:05]} 18. exd6 {[%emt 0:01:39]} cxd6 {[%emt 0:01:28]} 19. Bxb5 {[%emt 0:10:33]} Nxd5 {[%emt 0:02:01]} 20. Nxd5 {[%emt 0:00:27]} Bxd5 {[%emt 0:01:46]} 21. c4 {[%emt 0:00:12]} Bb7 {[%emt 0:02:36]} 22. Qd3 {[%emt 0:04:12]} Rd8 {[%emt 0:04:01]} 23. Nd4 {[%emt 0:02:28]} Qc7 {[%emt 0:02:40]} 24. Qg3 {[%emt 0:04:05]} Ra1 {[%emt 0:03:14]} 25. Nc2 {[%emt 0:05:16]} Ra5 {[%emt 0:01:43]} 26. Na3 {[%emt 0:01:26]} Ne7 {[%emt 0:02:42]} 27. Bd2 {[%emt 0:03:39]} Raa8 {[%emt 0:01:35]} 28. Bc3 {[%emt 0:03:04]} Nf5 {[%emt 0:00:29]} 29. Qh3 {[%emt 0:01:05]} e5 {[%emt 0:04:20]} 30. Nc2 {[%emt 0:01:19]} d5 {[%emt 0:03:17]} 31. cxd5 {[%emt 0:02:59]} Rxd5 {[%emt 0:00:14]} 32. Rxd5 {[%emt 0:00:55]} Bxd5 {[%emt 0:00:05]} 33. Bd3 {[%emt 0:03:00]} Be6 {[%emt 0:04:55]} 34. Qf3 {[%emt 0:00:54]} Rd8 {[%emt 0:03:46]} 35. Bxf5 {[%emt 0:00:42]} Bxf5 {[%emt 0:00:50]} 36. Ne3 {[%emt 0:00:06]} Be6 {[%emt 0:03:35]} 37. Ng4 {[%emt 0:00:33]} Bxg4 {[%emt 0:02:18]} 38. Qxg4 {[%emt 0:00:07]} f5 {[%emt 0:02:34]} 39. Qg3 {[%emt 0:01:56]} Rd5 {[%emt 0:00:33]} 40. Qe3 {[%emt 0:00:53]} Qc5 {[%emt 0:00:43]} 41. Qxc5 {[%emt 0:30:37]} Rxc5 {[%emt 0:30:04]} 42. Ra1 {[%emt 0:00:46]} Rc7 {[%emt 0:00:24]} 43. f3 {[%emt 0:00:20]} Rb7 {[%emt 0:00:35]} 44. Ra4 {[%emt 0:01:15]} e4 {[%emt 0:00:00]} 45. fxe4 {[%emt 0:00:00]} Bxc3 {[%emt 0:00:00]} 46. bxc3 {[%emt 0:00:00]} Rc7 {[%emt 0:00:00]} 47. exf5 {[%emt 0:00:00]} gxf5 {[%emt 0:00:00]} 48. c4 {[%emt 0:00:00]} Kg6 {[%emt 0:00:00]} 49. Kf2 {[%emt 0:00:00]} Rb7 {[%emt 0:00:00]} 50. c5 {[%emt 0:00:00]} Rb2+ {[%emt 0:00:00]} 51. Kf3 {[%emt 0:00:00]} Rc2 {[%emt 0:00:00]} 52. Ra6+ {[%emt 0:00:00]} Kg5 {[%emt 0:00:00]} 53. c6 {[%emt 0:00:00]} f4 {[%emt 0:00:00]} 54. h3 {[%emt 0:00:00]} Kf5 {[%emt 0:00:00]} 55. Ra5+ {[%emt 0:00:00]} Kf6 {[%emt 0:00:00]} 56. Ra6 {[%emt 0:00:00]} Kf5 {[%emt 0:00:00]} 57. c7 {[%emt 0:00:00]} Rc3+ {[%emt 0:00:00]} 58. Kf2 {[%emt 0:00:00]} Rc2+ {[%emt 0:00:00]} 59. Kg1 {[%emt 0:00:00]} Rxc7 {[%emt 0:00:00]} 60. Rxh6 {[%emt 0:00:00]} Kg5 {[%emt 0:00:00]} 61. Rh8 {[%emt 0:00:00]} Rc2 {[%emt 0:00:00]} 62. Rg8+ {[%emt 0:00:00]} Kf5 {[%emt 0:00:00]} 63. Kh2 {[%emt 0:00:00]} Rc3 {[%emt 0:00:00]} 64. h4 {[%emt 0:00:00]} Ra3 {[%emt 0:00:00]} 65. Rg5+ {[%emt 0:00:00]} Kf6 {[%emt 0:00:00]} 66. Kg1 {[%emt 0:00:00]} Ra2 {[%emt 0:00:00]} 67. Kf1 {[%emt 0:00:00]} Rb2 {[%emt 0:00:00]} 68. Rg4 {[%emt 0:00:00]} Kf5 {[%emt 0:00:10]} 69. Rg8 {[%emt 0:00:00]} Rb6 {[%emt 0:00:00]} 70. Rg5+ {[%emt 0:00:00]} Kf6 {[%emt 0:00:00]} 71. Kg1 {[%emt 0:00:00]} Rb3 {[%emt 0:00:00]} 72. Kh2 {[%emt 0:00:00]} Ra3 {[%emt 0:00:00]} 73. Rg8 {[%emt 0:00:00]} Kf5 {[%emt 0:00:43]} 74. Rg5+ {[%emt 0:00:00]} Kf6 {[%emt 0:00:07]} 75. Rb5 {[%emt 0:00:00]} Kg6 {[%emt 0:00:53]} 76. Kg1 {[%emt 0:00:00]} Rc3 {[%emt 0:00:20]} 77. Kf2 {[%emt 0:00:00]} Ra3 {[%emt 0:00:06]} 78. Rg5+ {[%emt 0:00:00]} Kf6 {[%emt 0:00:07]} 79. Rg8 {[%emt 0:00:00]} Kf5 {[%emt 0:00:40]} 80. Ke2 {[%emt 0:00:00]} Rb3 {[%emt 0:00:27]} 81. h5 {[%emt 0:00:00]} Rb6 {[%emt 0:00:44]} 82. Rd8 {[%emt 0:00:06]} Rb2+ {[%emt 0:00:43]} 83. Kf3 {[%emt 0:00:41]} Rb3+ {[%emt 0:00:06]} 84. Kf2 {[%emt 0:00:15]} Rb2+ {[%emt 0:00:06]} 85. Kg1 {[%emt 0:00:11]} Rb6 {[%emt 0:01:15]} 86. Kf2 {[%emt 0:03:32]} Rb2+ {[%emt 0:00:51]} 87. Kg1 {[%emt 0:00:29]} Rb6 {[%emt 0:00:05]} 88. Rh8 {[%emt 0:00:04]} Kg5 {[%emt 0:00:24]} 89. Kf2 {[%emt 0:00:15]} Rb2+ {[%emt 0:00:33]} 90. Kf3 {[%emt 0:00:16]} Rb3+ {[%emt 0:00:17]} 1/2-1/2

[Event "44th Chess Olympiad Open 2022"]
[Site "Chennai"]
[Date "2022.08.05"]
[Round "7.47"]
[White "Al Qudaimi, Basheer"]
[Black "Gerena Rivas, Eliam"]
[Result "1-0"]
[ECO "A10"]
[WhiteElo "2424"]
[BlackElo "2102"]
[Annotator "ChessBase"]
[PlyCount "87"]
[EventDate "2022.07.29"]
[EventType "team-tourn"]
[EventCountry "IND"]
[SourceTitle "playchess.com"]
[Source "ChessBase"]
[SourceQuality "1"]
[WhiteTeam "Yemen"]
[BlackTeam "Puerto Rico"]
[WhiteTeamCountry "YEM"]
[BlackTeamCountry "PUR"]
[TimeControl "40/5400+30:1800+30"]

1. c4 {[%emt 0:00:02]} g6 {[%emt 0:00:32]} 2. g3 {[%emt 0:01:33]} Bg7 {[%emt 0:00:29]} 3. Bg2 {[%emt 0:00:04]} d6 {[%emt 0:00:36]} 4. h4 {[%emt 0:00:46]} Nf6 {[%emt 0:00:59]} 5. d4 {[%emt 0:01:28]} O-O {[%emt 0:00:43]} 6. Nc3 {[%emt 0:00:07]} Nc6 {[%emt 0:01:30]} 7. Nf3 {[%emt 0:01:50]} Bg4 {[%emt 0:01:17]} 8. d5 {[%emt 0:02:08]} Na5 {[%emt 0:01:32]} 9. Nd2 {[%emt 0:01:06]} c5 {[%emt 0:01:00]} 10. O-O {[%emt 0:01:17]} a6 {[%emt 0:06:32]} 11. a4 {[%emt 0:01:56]} Qb6 {[%emt 0:11:36]} 12. Qc2 {[%emt 0:04:07]} Bf5 {[%emt 0:07:52]} 13. e4 {[%emt 0:01:19]} Bd7 {[%emt 0:00:37]} 14. Rb1 {[%emt 0:12:32]} Ng4 {[%emt 0:02:02]} 15. b3 {[%emt 0:03:36]} Bd4 {[%emt 0:05:02]} 16. Nf3 {[%emt 0:02:17]} e5 {[%emt 0:04:50]} 17. dxe6 {[%emt 0:04:15]} fxe6 {[%emt 0:00:12]} 18. Ne2 {[%emt 0:05:32]} Nc6 {[%emt 0:01:24]} 19. Nfxd4 {[%emt 0:09:00]} cxd4 {[%emt 0:00:36]} 20. Nf4 {[%emt 0:00:15]} a5 {[%emt 0:13:04]} 21. Qd1 {[%emt 0:05:32]} Nf6 {[%emt 0:02:31]} 22. Nd3 {[%emt 0:03:47]} e5 {[%emt 0:01:22]} 23. Ba3 {[%emt 0:02:26]} Nb4 {[%emt 0:02:35]} 24. Bxb4 {[%emt 0:01:09]} axb4 {[%emt 0:00:06]} 25. Qd2 {[%emt 0:00:37]} Bc6 {[%emt 0:01:01]} 26. Rbe1 {[%emt 0:01:17]} Nd7 {[%emt 0:00:57]} 27. h5 {[%emt 0:08:31]} Nc5 {[%emt 0:02:23]} 28. Nxc5 {[%emt 0:02:28]} dxc5 {[%emt 0:00:25]} 29. hxg6 {[%emt 0:00:05]} hxg6 {[%emt 0:00:20]} 30. Qg5 {[%emt 0:00:19]} Qc7 {[%emt 0:02:16]} 31. Qxg6+ {[%emt 0:01:16]} Kh8 {[%emt 0:00:55]} 32. Qh6+ {[%emt 0:01:03]} Kg8 {[%emt 0:00:52]} 33. Bh3 {[%emt 0:00:08]} Bd7 {[%emt 0:01:38]} 34. Qg5+ {[%emt 0:00:16]} Kh8 {[%emt 0:01:22]} 35. Bxd7 {[%emt 0:00:15]} Qxd7 {[%emt 0:00:24]} 36. Qxe5+ {[%emt 0:01:03]} Qg7 {[%emt 0:00:30]} 37. Qxc5 {[%emt 0:00:49]} Rad8 {[%emt 0:02:54]} 38. e5 {[%emt 0:02:27]} Rf3 {[%emt 0:01:47]} 39. Kg2 {[%emt 0:00:29]} Rxb3 {[%emt 0:01:13]} 40. e6 {[%emt 0:01:44]} Rf8 {[%emt 0:00:49]} 41. Qh5+ {[%emt 0:31:02]} Kg8 {[%emt 0:30:10]} 42. e7 {[%emt 0:00:48]} Rf6 {[%emt 0:02:12]} 43. f4 Rxf4 {[%emt 0:00:30]} 44. Rf2 {[%emt 0:00:46]} 1-0